[Event "Late-Titled-Tuesday-Blitz-February-20-2024"]
[Site "Chess.com"]
[Date "2024.02.20"]
[Round "5"]
[White "Tunahan_Makaraci"]
[Black "Ready4abattle"]
[Result "1-0"]
[WhiteElo "2520"]
[BlackElo "2281"]
[TimeControl "180+1"]
[EndTime "14:54:10 PST"]
[Termination "Tunahan_Makaraci won by resignation"]

1. e4 {[%clk 0:03:00.9]} 1... c5 {[%clk 0:02:56.7]} 2. Nf3 {[%clk 0:03:00.7]}
2... Nc6 {[%clk 0:02:56.1]} 3. c3 {[%clk 0:03:00.8]} 3... d5 {[%clk 0:02:55.8]}
4. exd5 {[%clk 0:03:01]} 4... Qxd5 {[%clk 0:02:56.7]} 5. d4 {[%clk 0:03:01.3]}
5... Bf5 {[%clk 0:02:56.8]} 6. Be3 {[%clk 0:03:00.8]} 6... Nf6 {[%clk 0:02:53]}
7. dxc5 {[%clk 0:02:50.9]} 7... Qxd1+ {[%clk 0:02:51.5]} 8. Kxd1 {[%clk
0:02:51.8]} 8... Ng4 {[%clk 0:02:48.4]} 9. Nbd2 {[%clk 0:02:47.2]} 9... Nxe3+
{[%clk 0:02:38.8]} 10. fxe3 {[%clk 0:02:47.3]} 10... e6 {[%clk 0:02:39.7]} 11.
b4 {[%clk 0:02:47]} 11... O-O-O {[%clk 0:02:25.4]} 12. Nd4 {[%clk 0:02:40.7]}
12... Bg4+ {[%clk 0:02:17.8]} 13. Be2 {[%clk 0:02:40.4]} 13... h5 {[%clk
0:02:15.9]} 14. Bxg4 {[%clk 0:02:23.4]} 14... hxg4 {[%clk 0:02:15.8]} 15. Nxc6
{[%clk 0:02:23.7]} 15... bxc6 {[%clk 0:02:15.5]} 16. Kc2 {[%clk 0:02:24.2]}
16... Be7 {[%clk 0:02:09.3]} 17. Nc4 {[%clk 0:02:19.5]} 17... Rd5 {[%clk
0:02:04.2]} 18. h3 {[%clk 0:02:03.4]} 18... Rdh5 {[%clk 0:02:00]} 19. Rhf1
{[%clk 0:02:02.1]} 19... gxh3 {[%clk 0:01:58.1]} 20. gxh3 {[%clk 0:01:50]} 20...
f6 {[%clk 0:01:52]} 21. Na5 {[%clk 0:01:39]} 21... Kc7 {[%clk 0:01:50.3]} 22.
Rad1 {[%clk 0:01:20.7]} 22... Rxh3 {[%clk 0:01:46.9]} 23. Rd3 {[%clk 0:01:20.7]}
23... Rh2+ {[%clk 0:01:43.1]} 24. Kb3 {[%clk 0:01:20.6]} 24... Rd8 {[%clk
0:01:39.4]} 25. Rxd8 {[%clk 0:01:16]} 25... Bxd8 {[%clk 0:01:39.4]} 26. Nc4
{[%clk 0:01:08.8]} 26... g5 {[%clk 0:01:35.3]} 27. Nd6 {[%clk 0:01:06.9]} 27...
Kd7 {[%clk 0:01:16]} 28. Rd1 {[%clk 0:01:01.9]} 28... Be7 {[%clk 0:01:06.1]} 29.
Nb5+ {[%clk 0:00:47.7]} 29... Ke8 {[%clk 0:01:05.9]} 30. Nxa7 {[%clk 0:00:47.6]}
30... Re2 {[%clk 0:00:57.7]} 31. Nxc6 {[%clk 0:00:45.9]} 31... Rxe3 {[%clk
0:00:54.9]} 32. Nxe7 {[%clk 0:00:44.6]} 32... Kxe7 {[%clk 0:00:54.8]} 33. c6
{[%clk 0:00:45]} 1-0

[Event "Late-Titled-Tuesday-Blitz-February-20-2024"]
[Site "Chess.com"]
[Date "2024.02.20"]
[Round "5"]
[White "Gentlejimmy7"]
[Black "Josetricks"]
[Result "1-0"]
[WhiteElo "2572"]
[BlackElo "2399"]
[TimeControl "180+1"]
[EndTime "14:54:11 PST"]
[Termination "Gentlejimmy7 won by resignation"]

1. c4 {[%clk 0:02:47.8]} 1... g6 {[%clk 0:02:58.6]} 2. g3 {[%clk 0:02:44.6]}
2... Bg7 {[%clk 0:02:59.5]} 3. Bg2 {[%clk 0:02:45.4]} 3... d6 {[%clk 0:02:59.8]}
4. Nf3 {[%clk 0:02:46.3]} 4... Nf6 {[%clk 0:03:00.1]} 5. O-O {[%clk 0:02:47.2]}
5... O-O {[%clk 0:03:00.8]} 6. b3 {[%clk 0:02:47.3]} 6... Nbd7 {[%clk
0:03:01.5]} 7. Bb2 {[%clk 0:02:47.9]} 7... c5 {[%clk 0:03:01.8]} 8. d4 {[%clk
0:02:46.8]} 8... Rb8 {[%clk 0:03:02.3]} 9. Nc3 {[%clk 0:02:45.9]} 9... a6 {[%clk
0:03:02.6]} 10. a4 {[%clk 0:02:44.5]} 10... b6 {[%clk 0:03:02]} 11. Rc1 {[%clk
0:02:40.8]} 11... Ne8 {[%clk 0:03:01.5]} 12. Qd2 {[%clk 0:02:38.4]} 12... Nc7
{[%clk 0:03:00.4]} 13. Rfd1 {[%clk 0:02:38.6]} 13... b5 {[%clk 0:02:59.3]} 14.
Rb1 {[%clk 0:02:03.3]} 14... bxc4 {[%clk 0:02:49.8]} 15. bxc4 {[%clk 0:02:02.3]}
15... Rb4 {[%clk 0:02:50.3]} 16. Nd5 {[%clk 0:01:42.4]} 16... Rxc4 {[%clk
0:02:17.1]} 17. dxc5 {[%clk 0:01:40.5]} 17... Nxc5 {[%clk 0:02:13.4]} 18. Bxg7
{[%clk 0:01:39.6]} 18... Kxg7 {[%clk 0:02:13.8]} 19. Nb6 {[%clk 0:01:35.4]}
19... Re4 {[%clk 0:01:11.8]} 20. Nd4 {[%clk 0:01:32.9]} 20... Bb7 {[%clk
0:01:09.1]} 21. Bxe4 {[%clk 0:01:25.5]} 21... Nxe4 {[%clk 0:01:08.4]} 22. Qb2
{[%clk 0:01:24.7]} 22... e5 {[%clk 0:01:04.7]} 23. Nf3 {[%clk 0:01:16.5]} 23...
Bc6 {[%clk 0:00:37.1]} 24. Nxe5 {[%clk 0:01:14.2]} 24... Qf6 {[%clk 0:00:27]}
25. Nxc6 {[%clk 0:01:03.6]} 25... Nc3 {[%clk 0:00:26.9]} 26. Nd7 {[%clk
0:00:56.8]} 1-0

[Event "Late-Titled-Tuesday-Blitz-February-20-2024"]
[Site "Chess.com"]
[Date "2024.02.20"]
[Round "5"]
[White "ACollins05"]
[Black "lucliasco"]
[Result "0-1"]
[WhiteElo "2585"]
[BlackElo "2880"]
[TimeControl "180+1"]
[EndTime "14:54:15 PST"]
[Termination "lucliasco won by resignation"]

1. d4 {[%clk 0:02:59]} 1... d5 {[%clk 0:02:56.1]} 2. c4 {[%clk 0:02:55]} 2...
Nc6 {[%clk 0:02:55.6]} 3. cxd5 {[%clk 0:02:52.9]} 3... Qxd5 {[%clk 0:02:54.9]}
4. e3 {[%clk 0:02:53.3]} 4... e5 {[%clk 0:02:53.1]} 5. Nc3 {[%clk 0:02:52.9]}
5... Bb4 {[%clk 0:02:53]} 6. a3 {[%clk 0:02:53.2]} 6... Bxc3+ {[%clk 0:02:51.7]}
7. bxc3 {[%clk 0:02:54.1]} 7... Nf6 {[%clk 0:02:51.7]} 8. c4 {[%clk 0:02:48.8]}
8... Qd6 {[%clk 0:02:51.5]} 9. d5 {[%clk 0:02:48.1]} 9... Ne7 {[%clk 0:02:46.6]}
10. a4 {[%clk 0:02:48.1]} 10... c5 {[%clk 0:02:42.3]} 11. Nf3 {[%clk 0:02:36.2]}
11... e4 {[%clk 0:02:40.1]} 12. Nd2 {[%clk 0:02:35]} 12... Ng6 {[%clk 0:02:40]}
13. Be2 {[%clk 0:02:32.9]} 13... O-O {[%clk 0:02:37.9]} 14. a5 {[%clk
0:02:29.2]} 14... Re8 {[%clk 0:02:34.5]} 15. O-O {[%clk 0:02:27.5]} 15... Ne5
{[%clk 0:02:34.1]} 16. Ba3 {[%clk 0:02:19.7]} 16... Bg4 {[%clk 0:02:32.6]} 17.
h3 {[%clk 0:02:12]} 17... Bxe2 {[%clk 0:02:26.3]} 18. Qxe2 {[%clk 0:02:12.9]}
18... b6 {[%clk 0:02:27]} 19. Rfb1 {[%clk 0:02:06.9]} 19... Rab8 {[%clk
0:02:19.2]} 20. Rb5 {[%clk 0:02:01]} 20... Nd3 {[%clk 0:02:13.4]} 21. Nxe4
{[%clk 0:01:53.2]} 21... Nxe4 {[%clk 0:02:11.2]} 22. Qxd3 {[%clk 0:01:53.2]}
22... Nxf2 {[%clk 0:02:04.7]} 23. Qe2 {[%clk 0:01:39.3]} 23... Ne4 {[%clk
0:02:01.8]} 24. Qb2 {[%clk 0:01:21.4]} 24... Re5 {[%clk 0:01:51.6]} 25. axb6
{[%clk 0:01:10.7]} 25... axb6 {[%clk 0:01:50.8]} 26. Rf1 {[%clk 0:00:52.2]}
26... Rg5 {[%clk 0:01:45.4]} 27. Rf4 {[%clk 0:00:50.7]} 27... f5 {[%clk
0:01:45.4]} 28. Qb3 {[%clk 0:00:33.3]} 28... Qh6 {[%clk 0:01:42.2]} 29. Kh2
{[%clk 0:00:25]} 29... Qd6 {[%clk 0:01:31.8]} 30. Kg1 {[%clk 0:00:20.8]} 30...
Rg3 {[%clk 0:01:25.7]} 31. Qd3 {[%clk 0:00:14.7]} 31... Qxf4 {[%clk 0:01:23.8]}
32. Bc1 {[%clk 0:00:09.1]} 32... Qf2+ {[%clk 0:01:22.4]} 0-1

[Event "Late-Titled-Tuesday-Blitz-February-20-2024"]
[Site "Chess.com"]
[Date "2024.02.20"]
[Round "5"]
[White "ajeale2"]
[Black "babero_gordo"]
[Result "1-0"]
[WhiteElo "2500"]
[BlackElo "2170"]
[TimeControl "180+1"]
[EndTime "14:54:17 PST"]
[Termination "ajeale2 won by resignation"]

1. d4 {[%clk 0:03:00.9]} 1... Nf6 {[%clk 0:02:57.6]} 2. Bf4 {[%clk 0:03:01.4]}
2... g6 {[%clk 0:02:56.3]} 3. Nc3 {[%clk 0:03:01.1]} 3... d5 {[%clk 0:02:55.1]}
4. Qd2 {[%clk 0:03:00.3]} 4... c6 {[%clk 0:02:41.2]} 5. h4 {[%clk 0:02:59.4]}
5... h5 {[%clk 0:02:39.1]} 6. Nf3 {[%clk 0:02:58.5]} 6... Bg7 {[%clk 0:02:34.4]}
7. Ne5 {[%clk 0:02:58.5]} 7... Nbd7 {[%clk 0:02:31.8]} 8. O-O-O {[%clk
0:02:58.8]} 8... a5 {[%clk 0:02:29.5]} 9. f3 {[%clk 0:02:57.5]} 9... a4 {[%clk
0:02:28.8]} 10. e4 {[%clk 0:02:54.8]} 10... dxe4 {[%clk 0:02:26]} 11. Bc4 {[%clk
0:02:54.2]} 11... Nxe5 {[%clk 0:02:17.5]} 12. dxe5 {[%clk 0:02:53.1]} 12...
Qxd2+ {[%clk 0:02:15.7]} 13. Rxd2 {[%clk 0:02:53.9]} 13... Nd7 {[%clk
0:02:12.1]} 14. e6 {[%clk 0:02:53.7]} 14... fxe6 {[%clk 0:02:03]} 15. Nxe4
{[%clk 0:02:54.1]} 15... a3 {[%clk 0:01:54.8]} 16. Bxe6 {[%clk 0:02:46.8]} 16...
axb2+ {[%clk 0:01:48.2]} 17. Kb1 {[%clk 0:02:47.3]} 17... Nb6 {[%clk 0:01:41.3]}
18. Bb3 {[%clk 0:02:47.1]} 18... Na4 {[%clk 0:01:31.6]} 19. Rhd1 {[%clk
0:02:32.3]} 19... Bf5 {[%clk 0:00:47.5]} 20. Bc7 {[%clk 0:02:32.3]} 20... e6
{[%clk 0:00:27]} 21. Bxa4 {[%clk 0:02:12.1]} 21... O-O {[%clk 0:00:19.1]} 22.
Bb3 {[%clk 0:02:07.3]} 22... Bxe4 {[%clk 0:00:14.5]} 23. fxe4 {[%clk 0:02:06.7]}
23... Bc3 {[%clk 0:00:14.1]} 24. Rd8 {[%clk 0:02:04.9]} 24... Raxd8 {[%clk
0:00:12.9]} 25. Rxd8 {[%clk 0:02:05]} 25... Kg7 {[%clk 0:00:12.8]} 26. Rxf8
{[%clk 0:02:03.2]} 26... Kxf8 {[%clk 0:00:13.7]} 27. Bxe6 {[%clk 0:01:59.8]}
27... Ke7 {[%clk 0:00:14]} 28. Bc8 {[%clk 0:01:49.2]} 28... b5 {[%clk
0:00:12.2]} 29. e5 {[%clk 0:01:44.4]} 29... c5 {[%clk 0:00:12.3]} 30. Bd6+
{[%clk 0:01:44.5]} 30... Kd8 {[%clk 0:00:11.2]} 31. Ba6 {[%clk 0:01:40.3]} 31...
b4 {[%clk 0:00:11.2]} 32. Bd3 {[%clk 0:01:40.1]} 32... Kd7 {[%clk 0:00:12]} 33.
Bxg6 {[%clk 0:01:39.6]} 33... Ke6 {[%clk 0:00:12]} 34. Bxh5 {[%clk 0:01:39.2]}
34... c4 {[%clk 0:00:12.5]} 35. Bg4+ {[%clk 0:01:36]} 35... Kd5 {[%clk
0:00:12.2]} 36. Bf3+ {[%clk 0:01:36.7]} 36... Ke6 {[%clk 0:00:12.2]} 37. h5
{[%clk 0:01:34.5]} 37... b3 {[%clk 0:00:12.6]} 38. axb3 {[%clk 0:01:33.9]} 38...
cxb3 {[%clk 0:00:13.5]} 39. cxb3 {[%clk 0:01:33.5]} 39... Kd7 {[%clk 0:00:13.8]}
40. h6 {[%clk 0:01:33]} 40... Ke8 {[%clk 0:00:13.6]} 41. h7 {[%clk 0:01:32.8]}
41... Kf7 {[%clk 0:00:14.5]} 1-0

[Event "Late-Titled-Tuesday-Blitz-February-20-2024"]
[Site "Chess.com"]
[Date "2024.02.20"]
[Round "5"]
[White "Hikaru"]
[Black "Andrei_Skvortsov"]
[Result "1-0"]
[WhiteElo "3235"]
[BlackElo "2697"]
[TimeControl "180+1"]
[EndTime "14:54:26 PST"]
[Termination "Hikaru won by resignation"]

1. h3 {[%clk 0:03:00.9]} 1... e5 {[%clk 0:02:54.5]} 2. c4 {[%clk 0:03:00.4]}
2... Nf6 {[%clk 0:02:45.6]} 3. Nc3 {[%clk 0:02:59.6]} 3... Nc6 {[%clk
0:02:34.2]} 4. g4 {[%clk 0:02:47.2]} 4... Bb4 {[%clk 0:02:24.6]} 5. Bg2 {[%clk
0:02:45.4]} 5... d6 {[%clk 0:02:23.7]} 6. d3 {[%clk 0:02:29.1]} 6... O-O {[%clk
0:02:15.2]} 7. a3 {[%clk 0:02:26.3]} 7... Bxc3+ {[%clk 0:02:14.2]} 8. bxc3
{[%clk 0:02:27]} 8... Ne7 {[%clk 0:02:12.7]} 9. e3 {[%clk 0:02:18]} 9... Ng6
{[%clk 0:02:09]} 10. g5 {[%clk 0:02:15.7]} 10... Nd7 {[%clk 0:02:09.1]} 11. h4
{[%clk 0:02:16]} 11... f5 {[%clk 0:02:07.1]} 12. f4 {[%clk 0:02:07.4]} 12... c6
{[%clk 0:01:59.8]} 13. h5 {[%clk 0:02:04.3]} 13... Ne7 {[%clk 0:02:00.2]} 14. h6
{[%clk 0:02:04.9]} 14... g6 {[%clk 0:01:59.4]} 15. a4 {[%clk 0:02:03.2]} 15...
Qc7 {[%clk 0:01:57.6]} 16. Ba3 {[%clk 0:02:01.6]} 16... Re8 {[%clk 0:01:55.9]}
17. Ne2 {[%clk 0:01:57.3]} 17... b6 {[%clk 0:01:53.9]} 18. O-O {[%clk
0:01:55.6]} 18... Nc5 {[%clk 0:01:53.8]} 19. d4 {[%clk 0:01:50.3]} 19... exd4
{[%clk 0:01:47]} 20. cxd4 {[%clk 0:01:39.5]} 20... Ne4 {[%clk 0:01:45.6]} 21. d5
{[%clk 0:01:39]} 21... cxd5 {[%clk 0:01:39.4]} 22. cxd5 {[%clk 0:01:24]} 22...
Bb7 {[%clk 0:01:16]} 23. Qd4 {[%clk 0:01:20.9]} 23... Nxd5 {[%clk 0:01:13.4]}
24. Bb2 {[%clk 0:01:21.1]} 24... Ndf6 {[%clk 0:00:38.7]} 25. Bxe4 {[%clk
0:01:14.7]} 25... Bxe4 {[%clk 0:00:25.2]} 26. Qxf6 {[%clk 0:01:14.6]} 26... Re7
{[%clk 0:00:25.7]} 27. Rac1 {[%clk 0:01:11]} 27... Qb7 {[%clk 0:00:22.1]} 28.
Qh8+ {[%clk 0:01:07.9]} 28... Kf7 {[%clk 0:00:22.7]} 29. Qxh7+ {[%clk
0:01:08.8]} 29... Ke6 {[%clk 0:00:23.3]} 30. Qxg6+ {[%clk 0:01:09.7]} 30... Kd7
{[%clk 0:00:24.1]} 31. Rfd1 {[%clk 0:01:08.6]} 31... Re6 {[%clk 0:00:18.7]} 32.
Qf7+ {[%clk 0:01:08.4]} 32... Re7 {[%clk 0:00:15.6]} 33. Rxd6+ {[%clk
0:01:08.7]} 33... Kxd6 {[%clk 0:00:15.3]} 34. Ba3+ {[%clk 0:01:09.4]} 1-0

[Event "Late-Titled-Tuesday-Blitz-February-20-2024"]
[Site "Chess.com"]
[Date "2024.02.20"]
[Round "5"]
[White "ahmedkandiliii"]
[Black "BardArtem"]
[Result "0-1"]
[WhiteElo "2522"]
[BlackElo "2774"]
[TimeControl "180+1"]
[EndTime "14:54:31 PST"]
[Termination "BardArtem won by checkmate"]

1. e4 {[%clk 0:02:59.2]} 1... e5 {[%clk 0:02:57.4]} 2. Nf3 {[%clk 0:02:58.7]}
2... Nc6 {[%clk 0:02:57.8]} 3. Bb5 {[%clk 0:02:58.5]} 3... Nge7 {[%clk
0:02:58.1]} 4. c3 {[%clk 0:02:56.5]} 4... d5 {[%clk 0:02:51.6]} 5. Qe2 {[%clk
0:02:48]} 5... dxe4 {[%clk 0:02:45.3]} 6. Qxe4 {[%clk 0:02:48.9]} 6... a6 {[%clk
0:02:18.3]} 7. Ba4 {[%clk 0:02:20.5]} 7... f5 {[%clk 0:02:13.5]} 8. Qe2 {[%clk
0:02:03.4]} 8... e4 {[%clk 0:02:00.8]} 9. Ne5 {[%clk 0:01:44.8]} 9... Qd5 {[%clk
0:01:58.4]} 10. Nxc6 {[%clk 0:01:42.6]} 10... Nxc6 {[%clk 0:01:59.3]} 11. O-O
{[%clk 0:01:41]} 11... Be6 {[%clk 0:01:59.1]} 12. Bb3 {[%clk 0:01:39.3]} 12...
Qd7 {[%clk 0:01:58.7]} 13. Bxe6 {[%clk 0:01:38.9]} 13... Qxe6 {[%clk 0:01:59.6]}
14. d3 {[%clk 0:01:38.7]} 14... O-O-O {[%clk 0:01:59]} 15. dxe4 {[%clk
0:01:38.4]} 15... fxe4 {[%clk 0:01:59.9]} 16. Nd2 {[%clk 0:01:35.8]} 16... Re8
{[%clk 0:01:48.8]} 17. Re1 {[%clk 0:01:29.1]} 17... e3 {[%clk 0:01:47.6]} 18.
fxe3 {[%clk 0:01:25.1]} 18... Bc5 {[%clk 0:01:43.7]} 19. Nf1 {[%clk 0:01:14.2]}
19... Ne5 {[%clk 0:01:38.8]} 20. Kh1 {[%clk 0:01:08.9]} 20... Rhf8 {[%clk
0:01:37.8]} 21. e4 {[%clk 0:00:53.1]} 21... Ng4 {[%clk 0:01:36.6]} 22. Be3
{[%clk 0:00:27.2]} 22... Rxf1+ {[%clk 0:01:12.5]} 23. Qxf1 {[%clk 0:00:22.4]}
23... Bxe3 {[%clk 0:01:10.5]} 24. Qf3 {[%clk 0:00:19.7]} 24... Nf2+ {[%clk
0:01:07.5]} 25. Kg1 {[%clk 0:00:19.5]} 25... Bb6 {[%clk 0:01:08.2]} 26. Kf1
{[%clk 0:00:13.9]} 26... Nxe4 {[%clk 0:01:07.9]} 27. Re2 {[%clk 0:00:10.3]}
27... Qc4 {[%clk 0:01:04.3]} 28. b3 {[%clk 0:00:07.9]} 28... Nd2+ {[%clk
0:01:03.7]} 29. Ke1 {[%clk 0:00:06.2]} 29... Nxf3+ {[%clk 0:01:04.6]} 30. gxf3
{[%clk 0:00:05.6]} 30... Qxe2# {[%clk 0:01:05.5]} 0-1

[Event "Late-Titled-Tuesday-Blitz-February-20-2024"]
[Site "Chess.com"]
[Date "2024.02.20"]
[Round "5"]
[White "Hrant_ChessMood"]
[Black "Mr_Heisenberg13"]
[Result "1-0"]
[WhiteElo "3017"]
[BlackElo "2852"]
[TimeControl "180+1"]
[EndTime "14:54:35 PST"]
[Termination "Hrant_ChessMood won by resignation"]

1. Nf3 {[%clk 0:03:00.9]} 1... d5 {[%clk 0:02:59.4]} 2. d4 {[%clk 0:03:00.1]}
2... Nf6 {[%clk 0:02:59]} 3. c4 {[%clk 0:03:00.4]} 3... e6 {[%clk 0:02:59.3]} 4.
Nc3 {[%clk 0:02:58.7]} 4... Bb4 {[%clk 0:02:59.6]} 5. Bg5 {[%clk 0:02:57.9]}
5... dxc4 {[%clk 0:02:59.3]} 6. a3 {[%clk 0:02:56.2]} 6... Bxc3+ {[%clk
0:02:57.4]} 7. bxc3 {[%clk 0:02:57.1]} 7... b5 {[%clk 0:02:55.1]} 8. Nd2 {[%clk
0:02:56.9]} 8... h6 {[%clk 0:02:43.8]} 9. Bxf6 {[%clk 0:02:56.3]} 9... Qxf6
{[%clk 0:02:40.7]} 10. Qb1 {[%clk 0:02:53.7]} 10... c6 {[%clk 0:02:36.3]} 11. a4
{[%clk 0:02:53.7]} 11... a6 {[%clk 0:02:35.4]} 12. g3 {[%clk 0:02:52.5]} 12...
O-O {[%clk 0:02:29.8]} 13. Bg2 {[%clk 0:02:52.6]} 13... Ra7 {[%clk 0:02:04.1]}
14. Nxc4 {[%clk 0:02:29.5]} 14... Nd7 {[%clk 0:01:40.6]} 15. Na5 {[%clk
0:02:21.4]} 15... c5 {[%clk 0:01:39.4]} 16. O-O {[%clk 0:02:17.1]} 16... Rc7
{[%clk 0:01:33.7]} 17. e3 {[%clk 0:02:09.5]} 17... b4 {[%clk 0:01:32.9]} 18.
cxb4 {[%clk 0:02:04.5]} 18... cxd4 {[%clk 0:01:32.4]} 19. exd4 {[%clk
0:02:05.4]} 19... Qxd4 {[%clk 0:01:31.8]} 20. Nc6 {[%clk 0:02:04.7]} 20... Qb6
{[%clk 0:01:26.4]} 21. Rc1 {[%clk 0:02:00.7]} 21... Nf6 {[%clk 0:01:22.9]} 22.
a5 {[%clk 0:01:54.4]} 22... Qb5 {[%clk 0:01:18.2]} 23. Rc5 {[%clk 0:01:47.6]}
23... Qe2 {[%clk 0:01:11.9]} 24. Nd4 {[%clk 0:01:47.7]} 24... Qd2 {[%clk
0:01:04.3]} 25. Rxc7 {[%clk 0:01:47.8]} 25... Qxd4 {[%clk 0:01:04.3]} 26. h3
{[%clk 0:01:23.1]} 26... Nd5 {[%clk 0:01:03.1]} 27. Bxd5 {[%clk 0:01:06]} 27...
Qxd5 {[%clk 0:01:04]} 28. Qd1 {[%clk 0:01:00.7]} 28... Qe4 {[%clk 0:01:02.3]}
29. Qe1 {[%clk 0:00:58.9]} 29... Qf3 {[%clk 0:00:54.7]} 30. Qc3 {[%clk
0:00:58.5]} 30... Qa8 {[%clk 0:00:51.6]} 31. b5 {[%clk 0:00:56]} 31... axb5
{[%clk 0:00:52.5]} 32. a6 {[%clk 0:00:56.5]} 32... e5 {[%clk 0:00:43]} 33. Qc6
{[%clk 0:00:55.2]} 33... Qxc6 {[%clk 0:00:34.2]} 34. Rxc6 {[%clk 0:00:55.4]}
34... b4 {[%clk 0:00:33]} 35. Rb6 {[%clk 0:00:53.9]} 1-0

[Event "Late-Titled-Tuesday-Blitz-February-20-2024"]
[Site "Chess.com"]
[Date "2024.02.20"]
[Round "5"]
[White "giomar27"]
[Black "ChEsper99"]
[Result "1-0"]
[WhiteElo "2467"]
[BlackElo "2260"]
[TimeControl "180+1"]
[EndTime "14:54:39 PST"]
[Termination "giomar27 won on time"]

1. Nc3 {[%clk 0:03:00.9]} 1... c5 {[%clk 0:00:53.2]} 2. e4 {[%clk 0:02:55.6]}
2... d6 {[%clk 0:00:53.2]} 3. d4 {[%clk 0:02:54.7]} 3... cxd4 {[%clk 0:00:53.5]}
4. Qxd4 {[%clk 0:02:53.6]} 4... Nc6 {[%clk 0:00:54.4]} 5. Qd2 {[%clk 0:02:53.7]}
5... Nf6 {[%clk 0:00:51.7]} 6. b3 {[%clk 0:02:54.1]} 6... e6 {[%clk 0:00:52.2]}
7. Bb2 {[%clk 0:02:54.6]} 7... d5 {[%clk 0:00:52.7]} 8. exd5 {[%clk 0:02:52.9]}
8... exd5 {[%clk 0:00:51.4]} 9. O-O-O {[%clk 0:02:53.4]} 9... Be6 {[%clk
0:00:46.4]} 10. Nf3 {[%clk 0:02:47]} 10... Bb4 {[%clk 0:00:44.4]} 11. a3 {[%clk
0:02:44.1]} 11... Ne4 {[%clk 0:00:35.3]} 12. Qe3 {[%clk 0:02:32.2]} 12... Nxc3
{[%clk 0:00:34.3]} 13. Bxc3 {[%clk 0:02:32.5]} 13... Bxa3+ {[%clk 0:00:34.8]}
14. Kb1 {[%clk 0:02:33.1]} 14... O-O {[%clk 0:00:34.3]} 15. Nd4 {[%clk
0:02:29.7]} 15... Nxd4 {[%clk 0:00:30.6]} 16. Qxd4 {[%clk 0:02:29.8]} 16... Qg5
{[%clk 0:00:23.9]} 17. Bd3 {[%clk 0:02:25.7]} 17... Rfc8 {[%clk 0:00:20.9]} 18.
h4 {[%clk 0:02:24.9]} 18... Qh6 {[%clk 0:00:19.3]} 19. g4 {[%clk 0:02:15]} 19...
Bf8 {[%clk 0:00:18.7]} 20. g5 {[%clk 0:02:14.3]} 20... Qh5 {[%clk 0:00:18.7]}
21. Rde1 {[%clk 0:02:09.2]} 21... Qf3 {[%clk 0:00:08.2]} 22. h5 {[%clk
0:02:02.2]} 22... Bf5 {[%clk 0:00:08.6]} 23. h6 {[%clk 0:01:59.8]} 23... Bxd3
{[%clk 0:00:07.4]} 24. cxd3 {[%clk 0:01:47.4]} 24... Qf5 {[%clk 0:00:03.3]} 25.
hxg7 {[%clk 0:01:46]} 25... Bc5 {[%clk 0:00:03.5]} 26. Qf6 {[%clk 0:01:31.1]}
26... Qxf6 {[%clk 0:00:03.3]} 27. gxf6 {[%clk 0:01:28.9]} 27... Bxf2 {[%clk
0:00:03.6]} 28. Rc1 {[%clk 0:01:26.1]} 28... d4 {[%clk 0:00:03.9]} 29. Bb4
{[%clk 0:01:21.5]} 29... Be3 {[%clk 0:00:03.6]} 30. Rcf1 {[%clk 0:01:16.3]}
30... a5 {[%clk 0:00:03.4]} 31. Be7 {[%clk 0:01:14.9]} 31... b5 {[%clk
0:00:03.6]} 32. Rh5 {[%clk 0:01:14.2]} 32... h6 {[%clk 0:00:03.4]} 33. Rfh1
{[%clk 0:01:14]} 33... a4 {[%clk 0:00:03.2]} 34. Rxh6 {[%clk 0:01:14.4]} 34...
Bxh6 {[%clk 0:00:02.7]} 35. Rxh6 {[%clk 0:01:15.3]} 1-0